[Event "Swedish U16 Team Championship 2019 - Final"]
[Site "Molnlycke Kulturhus, Biblioteksgatan 2, Molnlycke, Sweden"]
[Date "2019.08.17"]
[Round "4.9"]
[White "Nordin, Marcus 2007"]
[Black "Dingertz, Erik"]
[Result "0-1"]
[TimeControl "90 minutes + 30 seconds per move from move one."]
[WhiteElo "1162"]
[BlackElo "1888"]

1. e4 {[%clk 01:30:48]} {[%emt 00:00:12]} e5 {[%clk 01:30:29]} {[%emt
00:00:30]} 2. Nf3 {[%clk 01:30:48]} {[%emt 00:00:32]} Nc6 {[%clk 01:30:45]}
{[%emt 00:00:13]} 3. Bc4 {[%clk 01:31:00]} {[%emt 00:00:18]} Bc5 {[%clk
01:31:05]} {[%emt 00:00:09]} 4. O-O {[%clk 01:31:12]} {[%emt 00:00:19]} Nf6
{[%clk 01:31:06]} {[%emt 00:00:29]} 5. Nc3 {[%clk 01:31:34]} {[%emt 00:00:09]}
O-O {[%clk 01:31:18]} {[%emt 00:00:18]} 6. d3 {[%clk 01:31:53]} {[%emt
00:00:11]} h6 {[%clk 01:31:35]} {[%emt 00:00:12]} 7. Be3 {[%clk 01:32:07]}
{[%emt 00:00:16]} Bb6 {[%clk 01:31:12]} {[%emt 00:00:52]} 8. Nd5 {[%clk
01:32:14]} {[%emt 00:00:23]} d6 {[%clk 01:30:51]} {[%emt 00:00:51]} 9. h3
{[%clk 01:32:30]} {[%emt 00:00:15]} Nxd5 {[%clk 01:28:28]} {[%emt 00:02:53]} 10.
Bxd5 {[%clk 01:32:42]} {[%emt 00:00:18]} Ne7 {[%clk 01:28:12]} {[%emt
00:00:46]} 11. Bb3 {[%clk 01:32:37]} {[%emt 00:00:35]} Ng6 {[%clk 01:26:24]}
{[%emt 00:02:16]} 12. c3 {[%clk 01:30:58]} {[%emt 00:02:10]} Qe7 {[%clk
01:23:33]} {[%emt 00:03:19]} 13. Bc4 {[%clk 01:28:57]} {[%emt 00:02:33]} Kh8
{[%clk 01:22:13]} {[%emt 00:01:49]} 14. b4 {[%clk 01:28:23]} {[%emt 00:01:05]}
f5 {[%clk 01:21:20]} {[%emt 00:01:23]} 15. a4 {[%clk 01:27:22]} {[%emt
00:01:31]} c6 {[%clk 01:19:33]} {[%emt 00:02:17]} 16. Nd2 {[%clk 01:26:43]}
{[%emt 00:01:08]} Bc7 {[%clk 01:16:59]} {[%emt 00:03:05]} 17. f3 {[%clk
01:26:25]} {[%emt 00:00:48]} f4 {[%clk 01:08:47]} {[%emt 00:08:42]} 18. Bf2
{[%clk 01:26:32]} {[%emt 00:00:23]} Qg5 {[%clk 01:08:29]} {[%emt 00:00:47]} 19.
Kh1 {[%clk 01:25:37]} {[%emt 00:01:25]} Bd7 {[%clk 01:02:00]} {[%emt 00:07:00]}
20. Rg1 {[%clk 01:25:00]} {[%emt 00:01:07]} Qh5 {[%clk 01:02:11]} {[%emt
00:00:17]} 21. Qf1 {[%clk 01:24:32]} {[%emt 00:00:59]} Rae8 {[%clk 01:00:53]}
{[%emt 00:01:48]} 22. a5 {[%clk 01:24:13]} {[%emt 00:00:50]} a6 {[%clk
00:59:59]} {[%emt 00:01:24]} 23. Kh2 {[%clk 01:23:19]} {[%emt 00:01:24]} Bd8
{[%clk 00:59:12]} {[%emt 00:01:18]} 24. Re1 {[%clk 01:19:56]} {[%emt 00:03:53]}
Nh4 {[%clk 00:56:08]} {[%emt 00:03:34]} 25. Bxh4 {[%emt 00:00:44]} Bxh4 {[%emt
00:00:11]} 26. Re2 {[%clk 01:18:54]} {[%emt 00:00:38]} Bg3+ {[%clk 00:56:30]}
{[%emt 00:00:07]} 27. Kh1 {[%clk 01:19:09]} {[%emt 00:00:16]} g5 {[%clk
00:56:10]} {[%emt 00:00:49]} 28. Bb3 {[%clk 01:17:44]} {[%emt 00:01:56]} Qh4
{[%clk 00:52:19]} {[%emt 00:04:21]} 29. Bc4 {[%clk 01:16:55]} {[%emt 00:01:20]}
h5 {[%clk 00:52:33]} {[%emt 00:00:16]} 30. Bb3 {[%clk 01:16:17]} {[%emt
00:01:08]} Re7 {[%clk 00:52:21]} {[%emt 00:00:40]} 31. Bc4 {[%clk 01:15:28]}
{[%emt 00:01:20]} Rh7 {[%clk 00:52:44]} {[%emt 00:00:07]} 32. d4 {[%clk
01:13:56]} {[%emt 00:02:03]} g4 {[%clk 00:52:46]} {[%emt 00:00:27]} 33. fxg4
{[%clk 01:13:57]} {[%emt 00:00:30]} hxg4 {[%clk 00:52:40]} {[%emt 00:00:36]} 34.
dxe5 {[%clk 01:12:52]} {[%emt 00:01:34]} dxe5 {[%clk 00:51:57]} {[%emt
00:01:14]} 35. Bd3 {[%clk 01:12:15]} {[%emt 00:01:06]} gxh3 {[%clk 00:52:09]}
{[%emt 00:00:18]} 36. Nc4 {[%clk 01:09:51]} {[%emt 00:02:54]} hxg2+ {[%clk
00:52:22]} {[%emt 00:00:17]} 37. Kxg2 {[%clk 01:10:08]} {[%emt 00:00:13]} Qh3+
{[%clk 00:52:50]} {[%emt 00:00:02]} 38. Kf3 {[%clk 01:08:07]} {[%emt 00:02:31]}
Bg4# {[%clk 00:53:16]} {[%emt 00:00:04]} 0-1

[Event "Swedish U16 Team Championship 2019 - Final"]
[Site "Molnlycke Kulturhus, Biblioteksgatan 2, Molnlycke, Sweden"]
[Date "2019.08.17"]
[Round "4.10"]
[White "Ljung, Harald"]
[Black "Johansson, Sigge"]
[Result "1-0"]
[TimeControl "90 minutes + 30 seconds per move from move one."]
[WhiteElo "1811"]
[BlackElo "1123"]

1. d4 {[%clk 01:30:58]} {[%emt 00:00:01]} d6 {[%clk 01:30:56]} {[%emt
00:00:05]} 2. c4 {[%clk 01:31:12]} {[%emt 00:00:15]} Nf6 {[%clk 01:31:14]}
{[%emt 00:00:13]} 3. Nc3 {[%clk 01:31:20]} {[%emt 00:00:21]} Bf5 {[%clk
01:31:13]} {[%emt 00:00:31]} 4. Nf3 {[%clk 01:31:30]} {[%emt 00:00:21]} Nbd7
{[%clk 01:31:30]} {[%emt 00:00:14]} 5. g3 {[%clk 01:30:18]} {[%emt 00:01:41]}
g6 {[%clk 01:30:59]} {[%emt 00:01:01]} 6. Bg2 {[%clk 01:29:37]} {[%emt
00:01:11]} Rc8 {[%clk 01:30:20]} {[%emt 00:01:09]} 7. Nh4 {[%clk 01:28:19]}
{[%emt 00:01:48]} c6 {[%clk 01:24:47]} {[%emt 00:06:02]} 8. Nxf5 {[%clk
01:28:14]} {[%emt 00:00:35]} gxf5 {[%clk 01:25:08]} {[%emt 00:00:11]} 9. O-O
{[%clk 01:28:22]} {[%emt 00:00:21]} e6 {[%clk 01:19:50]} {[%emt 00:05:47]} 10.
Re1 {[%clk 01:26:36]} {[%emt 00:02:16]} d5 {[%clk 01:14:15]} {[%emt 00:06:05]}
11. cxd5 {[%clk 01:20:19]} {[%emt 00:06:46]} cxd5 {[%clk 01:14:25]} {[%emt
00:00:21]} 12. Bf4 {[%clk 01:18:32]} {[%emt 00:02:17]} Nh5 {[%clk 01:12:21]}
{[%emt 00:02:33]} 13. Bd2 {[%clk 01:18:33]} {[%emt 00:00:29]} Bd6 {[%clk
01:11:22]} {[%emt 00:01:29]} 14. e4 {[%clk 01:17:47]} {[%emt 00:01:17]} Ndf6
{[%clk 01:07:27]} {[%emt 00:04:24]} 15. e5 {[%clk 01:17:27]} {[%emt 00:00:51]}
Bc7 {[%clk 01:02:31]} {[%emt 00:05:26]} 16. Bg5 {[%clk 01:15:54]} {[%emt
00:02:03]} Kd7 {[%clk 00:59:05]} {[%emt 00:03:55]} 17. Qa4+ {[%clk 01:15:14]}
{[%emt 00:01:10]} Ke7 {[%clk 00:59:14]} {[%emt 00:00:21]} 18. exf6+ {[%clk
01:15:38]} {[%emt 00:00:06]} Nxf6 {[%clk 00:59:28]} {[%emt 00:00:16]} 19. Nxd5+
{[%clk 01:15:51]} {[%emt 00:00:18]} Kf8 {[%clk 00:57:35]} {[%emt 00:02:23]} 20.
Bxf6 {[%clk 01:15:34]} {[%emt 00:00:47]} Qd6 {[%clk 00:57:22]} {[%emt
00:00:42]} 21. Be7+ {[%clk 01:15:45]} {[%emt 00:00:20]} 1-0

[Event "Swedish U16 Team Championship 2019 - Final"]
[Site "Molnlycke Kulturhus, Biblioteksgatan 2, Molnlycke, Sweden"]
[Date "2019.08.17"]
[Round "4.11"]
[White "Lyngsjo, Luke"]
[Black "Nord, Gabriel"]
[Result "0-1"]
[TimeControl "90 minutes + 30 seconds per move from move one."]
[WhiteElo "1107"]
[BlackElo "1762"]

1. e4 {[%clk 01:30:54]} {[%emt 00:00:04]} e5 {[%clk 01:30:56]} {[%emt
00:00:04]} 2. Nf3 {[%clk 01:31:20]} {[%emt 00:00:05]} Nc6 {[%clk 01:31:23]}
{[%emt 00:00:04]} 3. Bc4 {[%clk 01:31:35]} {[%emt 00:00:14]} Bc5 {[%clk
01:31:49]} {[%emt 00:00:04]} 4. O-O {[%clk 01:31:48]} {[%emt 00:00:17]} Nf6
{[%clk 01:32:15]} {[%emt 00:00:05]} 5. d3 {[%clk 01:31:40]} {[%emt 00:00:37]}
d6 {[%clk 01:32:17]} {[%emt 00:00:27]} 6. h3 {[%clk 01:31:13]} {[%emt
00:00:57]} Be6 {[%clk 01:32:01]} {[%emt 00:00:45]} 7. Bb3 {[%clk 01:31:01]}
{[%emt 00:00:43]} h6 {[%clk 01:32:03]} {[%emt 00:00:29]} 8. Be3 {[%clk
01:30:59]} {[%emt 00:00:32]} Bb6 {[%clk 01:31:34]} {[%emt 00:00:59]} 9. Nc3
{[%clk 01:30:13]} {[%emt 00:01:16]} Qd7 {[%clk 01:30:34]} {[%emt 00:01:30]} 10.
d4 {[%clk 01:29:22]} {[%emt 00:01:21]} exd4 {[%clk 01:30:03]} {[%emt 00:01:01]}
11. Bxe6 {[%clk 01:26:37]} {[%emt 00:03:14]} fxe6 {[%clk 01:29:47]} {[%emt
00:00:47]} 12. Nxd4 {[%clk 01:26:10]} {[%emt 00:00:58]} O-O-O {[%clk 01:24:43]}
{[%emt 00:05:33]} 13. Nxc6 {[%clk 01:23:48]} {[%emt 00:02:51]} Qxc6 {[%clk
01:25:05]} {[%emt 00:00:09]} 14. Bxb6 {[%clk 01:23:36]} {[%emt 00:00:42]} Qxb6
{[%clk 01:25:31]} {[%emt 00:00:05]} 15. b3 {[%clk 01:21:21]} {[%emt 00:02:45]}
Rdf8 {[%clk 01:23:13]} {[%emt 00:02:47]} 16. Qe2 {[%clk 01:20:53]} {[%emt
00:00:58]} e5 {[%clk 01:15:44]} {[%emt 00:07:59]} 17. Rad1 {[%clk 01:20:10]}
{[%emt 00:01:13]} Rf7 {[%clk 01:12:27]} {[%emt 00:03:46]} 18. Nd5 {[%clk
01:19:04]} {[%emt 00:01:37]} Nxd5 {[%clk 01:11:40]} {[%emt 00:01:18]} 19. exd5
{[%clk 01:17:23]} {[%emt 00:02:11]} Rhf8 {[%clk 01:10:31]} {[%emt 00:01:39]} 20.
c4 {[%clk 01:13:27]} {[%emt 00:04:26]} Rf4 {[%clk 01:07:01]} {[%emt 00:03:59]}
21. Qe3 {[%clk 01:10:58]} {[%emt 00:02:59]} Qa5 {[%clk 01:02:46]} {[%emt
00:04:45]} 22. Rd2 {[%clk 01:04:38]} {[%emt 00:06:50]} b6 {[%clk 01:00:51]}
{[%emt 00:02:26]} 23. Rc1 {[%clk 00:56:00]} {[%emt 00:09:07]} Kb8 {[%clk
00:59:10]} {[%emt 00:02:10]} 24. Rcc2 {[%clk 00:53:24]} {[%emt 00:03:07]} Qa6
{[%clk 00:58:20]} {[%emt 00:01:20]} 25. Rb2 {[%clk 00:52:27]} {[%emt 00:01:26]}
Qc8 {[%clk 00:57:30]} {[%emt 00:01:20]} 26. f3 {[%clk 00:43:35]} {[%emt
00:09:22]} Qf5 {[%clk 00:55:59]} {[%emt 00:02:01]} 27. Rf2 {[%clk 00:42:49]}
{[%emt 00:01:15]} h5 {[%clk 00:54:17]} {[%emt 00:02:12]} 28. Kh2 {[%clk
00:40:49]} {[%emt 00:02:30]} h4 {[%clk 00:43:14]} {[%emt 00:11:34]} 29. Kg1
{[%clk 00:33:09]} {[%emt 00:08:10]} Rf6 {[%clk 00:43:04]} {[%emt 00:00:39]} 30.
Rbe2 {[%clk 00:31:45]} {[%emt 00:01:54]} Rg6 {[%clk 00:41:47]} {[%emt
00:01:48]} 31. Kh2 {[%clk 00:30:35]} {[%emt 00:01:40]} Rg3 {[%emt 00:02:33]} 32.
Qc1 {[%clk 00:23:01]} {[%emt 00:08:02]} Qf6 {[%clk 00:33:22]} {[%emt 00:06:53]}
33. Qe1 {[%clk 00:21:46]} {[%emt 00:01:44]} Kb7 {[%clk 00:32:30]} {[%emt
00:01:23]} 34. Re4 {[%clk 00:21:29]} {[%emt 00:00:48]} Rf5 {[%clk 00:30:20]}
{[%emt 00:02:40]} 35. Qe3 {[%clk 00:19:50]} {[%emt 00:02:09]} Rg6 {[%clk
00:26:39]} {[%emt 00:04:11]} 36. Rg4 {[%clk 00:18:16]} {[%emt 00:02:03]} Rxg4
{[%clk 00:26:16]} {[%emt 00:00:54]} 37. hxg4 {[%clk 00:18:19]} {[%emt
00:00:27]} Rf4 {[%clk 00:25:44]} {[%emt 00:01:01]} 38. Kh3 {[%clk 00:17:36]}
{[%emt 00:01:13]} g5 {[%clk 00:25:34]} {[%emt 00:00:41]} 39. Qc3 {[%clk
00:15:12]} {[%emt 00:02:54]} Rd4 {[%clk 00:24:51]} {[%emt 00:01:13]} 40. Rd2
{[%clk 00:14:15]} {[%emt 00:01:25]} Qf4 {[%clk 00:25:04]} {[%emt 00:00:18]} 41.
Rxd4 {[%clk 00:13:25]} {[%emt 00:01:21]} Qg3# {[%clk 00:25:27]} {[%emt
00:00:06]} 0-1

[Event "Swedish U16 Team Championship 2019 - Final"]
[Site "Molnlycke Kulturhus, Biblioteksgatan 2, Molnlycke, Sweden"]
[Date "2019.08.17"]
[Round "4.13"]
[White "Soderstrom, Adrian"]
[Black "Kucuksari, Kaan"]
[Result "1/2-1/2"]
[TimeControl "90 minutes + 30 seconds per move from move one."]
[BlackTitle "FM"]
[WhiteElo "1970"]
[BlackElo "2286"]

1. d4 {[%clk 01:29:59]} {[%emt 00:01:00]} d5 {[%clk 01:30:54]} {[%emt
00:00:06]} 2. c4 {[%clk 01:30:19]} {[%emt 00:00:10]} c6 {[%clk 01:31:19]}
{[%emt 00:00:05]} 3. cxd5 {[%clk 01:30:41]} {[%emt 00:00:08]} cxd5 {[%clk
01:31:40]} {[%emt 00:00:09]} 4. Nc3 {[%clk 01:30:42]} {[%emt 00:00:29]} Nf6
{[%clk 01:32:05]} {[%emt 00:00:06]} 5. f3 {[%clk 01:27:47]} {[%emt 00:03:23]}
Nc6 {[%clk 01:19:54]} {[%emt 00:12:41]} 6. e4 {[%clk 01:28:07]} {[%emt
00:00:10]} dxe4 {[%clk 01:13:37]} {[%emt 00:06:48]} 7. d5 {[%clk 01:27:17]}
{[%emt 00:01:19]} Ne5 {[%clk 01:11:02]} {[%emt 00:03:05]} 8. fxe4 {[%clk
01:27:43]} {[%emt 00:00:04]} e6 {[%clk 01:09:13]} {[%emt 00:02:20]} 9. Nf3
{[%clk 01:28:00]} {[%emt 00:00:12]} Nxf3+ {[%clk 01:04:34]} {[%emt 00:05:09]}
10. Qxf3 {[%clk 01:28:24]} {[%emt 00:00:05]} exd5 {[%clk 00:49:43]} {[%emt
00:15:22]} 11. exd5 {[%clk 01:28:49]} {[%emt 00:00:04]} Bb4 {[%clk 00:49:55]}
{[%emt 00:00:18]} 12. Bg5 {[%clk 01:21:47]} {[%emt 00:07:31]} Qxd5 {[%clk
00:44:52]} {[%emt 00:05:33]} 13. Qxd5 {[%clk 01:07:07]} {[%emt 00:15:10]} Bxc3+
{[%clk 00:37:10]} {[%emt 00:08:13]} 14. bxc3 {[%clk 01:04:04]} {[%emt
00:03:32]} Nxd5 {[%clk 00:37:38]} {[%emt 00:00:02]} 15. O-O-O {[%clk 00:58:59]}
{[%emt 00:05:34]} Be6 {[%clk 00:36:48]} {[%emt 00:01:21]} 16. Bb5+ {[%clk
00:49:29]} {[%emt 00:09:59]} Kf8 {[%clk 00:37:17]} {[%emt 00:00:01]} 17. Rd3
{[%clk 00:48:11]} {[%emt 00:01:47]} Rc8 {[%clk 00:30:09]} {[%emt 00:07:39]} 18.
Rhd1 {[%clk 00:46:39]} {[%emt 00:02:02]} f6 {[%clk 00:19:55]} {[%emt 00:10:44]}
19. Bd7 {[%clk 00:45:14]} {[%emt 00:01:55]} Rxc3+ {[%clk 00:15:53]} {[%emt
00:04:33]} 20. Rxc3 {[%clk 00:45:13]} {[%emt 00:00:31]} Nxc3 {[%clk 00:16:22]}
{[%emt 00:00:01]} 21. Rd3 {[%clk 00:45:01]} {[%emt 00:00:41]} Ne2+ {[%clk
00:05:31]} {[%emt 00:11:22]} 22. Kd2 {[%clk 00:43:02]} {[%emt 00:02:27]} fxg5
{[%clk 00:01:05]} {[%emt 00:04:57]} 23. Bxe6 {[%clk 00:41:46]} {[%emt
00:01:47]} Ke7 {[%clk 00:01:35]} 24. Bg4 {[%clk 00:38:22]} {[%emt 00:03:53]}
Nf4 {[%clk 00:02:03]} {[%emt 00:00:03]} 25. Rd7+ {[%clk 00:38:43]} {[%emt
00:00:09]} Kf6 {[%clk 00:02:32]} {[%emt 00:00:01]} 26. g3 {[%clk 00:32:17]}
{[%emt 00:06:56]} h5 {[%clk 00:02:31]} {[%emt 00:00:31]} 27. Bf3 {[%clk
00:26:48]} {[%emt 00:05:58]} Ne6 {[%clk 00:00:46]} {[%emt 00:02:17]} 28. Rxb7
{[%clk 00:25:05]} {[%emt 00:02:13]} g4 {[%clk 00:01:15]} {[%emt 00:00:01]} 29.
Bg2 {[%clk 00:24:24]} {[%emt 00:01:10]} h4 {[%clk 00:01:29]} {[%emt 00:00:16]}
30. Ke3 {[%clk 00:23:12]} {[%emt 00:01:42]} h3 {[%clk 00:00:36]} {[%emt
00:01:24]} 31. Bd5 {[%clk 00:16:12]} {[%emt 00:07:29]} Re8 {[%clk 00:00:35]}
{[%emt 00:00:31]} 32. Bxe6 {[%clk 00:15:55]} {[%emt 00:00:48]} g5 {[%clk
00:00:42]} {[%emt 00:00:23]} 33. Rf7+ {[%clk 00:08:47]} {[%emt 00:07:38]} Kxe6
{[%clk 00:00:41]} {[%emt 00:00:33]} 34. Rxa7 {[%clk 00:09:11]} {[%emt
00:00:06]} Kf5+ {[%clk 00:00:38]} {[%emt 00:00:33]} 35. Kf2 {[%clk 00:09:20]}
{[%emt 00:00:20]} Rb8 {[%clk 00:00:35]} {[%emt 00:00:34]} 36. Ra5+ {[%clk
00:09:36]} {[%emt 00:00:14]} Ke4 {[%clk 00:00:47]} {[%emt 00:00:17]} 37. Ra4+
{[%clk 00:09:37]} {[%emt 00:00:29]} Kf5 {[%clk 00:01:05]} {[%emt 00:00:12]} 38.
Ra5+ {[%clk 00:10:01]} {[%emt 00:00:06]} Kf6 {[%clk 00:00:59]} {[%emt
00:00:36]} 39. Ra6+ {[%clk 00:10:22]} {[%emt 00:00:09]} Ke5 {[%clk 00:01:06]}
{[%emt 00:00:22]} 40. Ra5+ {[%clk 00:10:42]} {[%emt 00:00:11]} Kf6 {[%clk
00:01:27]} {[%emt 00:00:09]} 41. Ra6+ {[%clk 00:11:06]} {[%emt 00:00:05]} Ke5
{[%clk 00:01:23]} {[%emt 00:00:34]} 42. Ra5+ {[%emt 00:01:19]} Ke4 {[%clk
00:00:45]} 43. Ra4+ {[%clk 00:11:44]} {[%emt 00:00:11]} Ke5 {[%clk 00:00:35]}
{[%emt 00:00:39]} 44. Ra5+ {[%emt 00:00:17]} 1/2-1/2

[Event "Swedish U16 Team Championship 2019 - Final"]
[Site "Molnlycke Kulturhus, Biblioteksgatan 2, Molnlycke, Sweden"]
[Date "2019.08.17"]
[Round "4.14"]
[White "Bensryd, Hampus"]
[Black "Falkevall, Axel"]
[Result "1/2-1/2"]
[TimeControl "90 minutes + 30 seconds per move from move one."]
[WhiteElo "1907"]
[BlackElo "2046"]

1. e4 {[%clk 01:30:55]} {[%emt 00:00:04]} e6 {[%clk 01:30:24]} {[%emt
00:00:37]} 2. d3 {[%clk 01:31:06]} {[%emt 00:00:18]} d5 {[%clk 01:30:49]}
{[%emt 00:00:05]} 3. Nd2 {[%clk 01:31:28]} {[%emt 00:00:08]} Nf6 {[%clk
01:31:13]} {[%emt 00:00:07]} 4. Ngf3 {[%clk 01:31:48]} {[%emt 00:00:10]} b6
{[%clk 01:31:33]} {[%emt 00:00:10]} 5. g3 {[%clk 01:31:26]} {[%emt 00:00:51]}
Bb7 {[%clk 01:31:51]} {[%emt 00:00:11]} 6. e5 {[%clk 01:30:44]} {[%emt
00:01:12]} Nfd7 {[%clk 01:32:13]} {[%emt 00:00:09]} 7. Bg2 {[%clk 01:31:00]}
{[%emt 00:00:14]} c5 {[%clk 01:32:24]} {[%emt 00:00:19]} 8. O-O {[%clk
01:30:30]} {[%emt 00:01:00]} Nc6 {[%clk 01:32:44]} {[%emt 00:00:11]} 9. Re1
{[%clk 01:30:19]} {[%emt 00:00:41]} Qc7 {[%clk 01:32:37]} {[%emt 00:00:37]} 10.
Qe2 {[%clk 01:28:50]} {[%emt 00:01:58]} Be7 {[%clk 01:32:14]} {[%emt 00:00:54]}
11. h4 {[%clk 01:27:18]} {[%emt 00:02:02]} O-O-O {[%clk 01:30:24]} {[%emt
00:02:20]} 12. c3 {[%clk 01:21:52]} {[%emt 00:05:56]} h6 {[%emt 00:02:36]} 13.
a3 {[%emt 00:05:57]} g5 {[%clk 01:25:49]} {[%emt 00:01:13]} 14. hxg5 {[%emt
00:03:29]} hxg5 {[%clk 01:25:27]} {[%emt 00:00:15]} 15. Nf1 {[%emt 00:13:17]}
g4 {[%emt 00:01:38]} 16. Ng5 {[%emt 00:13:45]} Rdf8 {[%clk 01:11:37]} {[%emt
00:04:44]} 17. Qxg4 {[%clk 00:57:19]} {[%emt 00:01:26]} Ndxe5 {[%clk 01:10:48]}
{[%emt 00:01:19]} 18. Qe2 {[%emt 00:11:59]} Bd6 {[%emt 00:09:13]} 19. f4 {[%emt
00:04:42]} Nd7 {[%clk 00:55:40]} {[%emt 00:02:09]} 20. Nf3 {[%emt 00:07:20]}
Re8 {[%clk 00:46:20]} {[%emt 00:03:16]} 21. d4 {[%emt 00:07:23]} f6 {[%emt
00:12:04]} 22. Be3 {[%clk 00:32:03]} {[%emt 00:00:03]} e5 {[%clk 00:37:51]}
{[%emt 00:05:03]} 23. fxe5 {[%clk 00:30:42]} {[%emt 00:01:51]} fxe5 {[%clk
00:37:31]} {[%emt 00:00:51]} 24. dxe5 {[%clk 00:31:05]} {[%emt 00:00:07]} Ncxe5
{[%clk 00:35:28]} {[%emt 00:02:31]} 25. Nxe5 {[%emt 00:04:49]} Nxe5 {[%clk
00:33:03]} {[%emt 00:00:53]} 26. Bf4 {[%emt 00:06:04]} d4 {[%clk 00:28:03]}
{[%emt 00:01:01]} 27. Qd2 {[%emt 00:09:16]} dxc3 {[%clk 00:20:34]} {[%emt
00:00:50]} 28. bxc3 {[%clk 00:25:43]} {[%emt 00:00:55]} Bxg2 {[%clk 00:19:17]}
{[%emt 00:01:48]} 29. Qxg2 {[%clk 00:25:51]} {[%emt 00:00:22]} Qb7 {[%clk
00:19:08]} {[%emt 00:00:38]} 30. Qxb7+ {[%clk 00:25:25]} {[%emt 00:00:57]} Kxb7
{[%clk 00:19:06]} {[%emt 00:00:32]} 31. Kg2 {[%clk 00:25:29]} {[%emt 00:00:26]}
Nd3 {[%clk 00:18:25]} {[%emt 00:01:09]} 32. Rxe8 {[%clk 00:22:23]} {[%emt
00:03:38]} Nxf4+ {[%clk 00:18:37]} {[%emt 00:00:19]} 33. gxf4 {[%clk 00:22:31]}
{[%emt 00:00:21]} Rxe8 {[%clk 00:18:58]} {[%emt 00:00:09]} 34. Kf3 {[%clk
00:21:58]} {[%emt 00:01:03]} Rf8 {[%clk 00:18:53]} {[%emt 00:00:32]} 35. Ke2
{[%clk 00:20:56]} {[%emt 00:01:35]} Bxf4 {[%clk 00:18:13]} {[%emt 00:01:10]} 36.
Kd3 {[%clk 00:20:44]} {[%emt 00:00:43]} Re8 {[%emt 00:00:55]} 37. Kc4 {[%clk
00:17:58]} {[%emt 00:03:05]} Kc6 {[%clk 00:17:39]} {[%emt 00:00:49]} 38. a4
{[%clk 00:18:02]} {[%emt 00:00:27]} a6 {[%clk 00:16:22]} {[%emt 00:01:47]} 39.
Kb3 {[%clk 00:16:30]} {[%emt 00:02:01]} Re2 {[%clk 00:15:30]} {[%emt 00:01:20]}
40. Rd1 {[%clk 00:15:25]} {[%emt 00:01:37]} b5 {[%clk 00:14:32]} {[%emt
00:01:28]} 41. axb5+ {[%clk 00:14:11]} {[%emt 00:01:44]} axb5 {[%clk 00:14:56]}
{[%emt 00:00:06]} 42. c4 {[%emt 00:01:29]} b4 {[%clk 00:14:18]} {[%emt
00:00:03]} 43. Rd3 {[%emt 00:04:26]} Be5 {[%emt 00:01:27]} 44. Nd2 {[%emt
00:05:07]} Bc3 {[%clk 00:09:38]} {[%emt 00:00:03]} 45. Nf3 {[%emt 00:01:53]}
Rb2+ {[%clk 00:08:33]} {[%emt 00:00:38]} 46. Ka4 {[%emt 00:00:12]} Bf6 {[%clk
00:08:29]} {[%emt 00:00:24]} 47. Nd2 {[%emt 00:06:21]} Rc2 {[%emt 00:01:43]} 48.
Kb3 {[%clk 00:05:40]} {[%emt 00:02:26]} Rc3+ 49. Rxc3 Bxc3 50. Ne4 {[%emt
00:00:48]} Bd4 {[%emt 00:00:11]} 51. Kc2 {[%clk 00:05:35]} {[%emt 00:00:45]}
Kd7 {[%emt 00:01:05]} 52. Nd2 {[%emt 00:00:20]} Ke6 {[%emt 00:00:49]} 53. Kd3
{[%emt 00:00:57]} Kf5 {[%emt 00:00:21]} 54. Nb3 {[%emt 00:01:41]} Bg1 {[%emt
00:01:04]} 55. Nd2 {[%clk 00:03:02]} {[%emt 00:00:47]} Kf4 {[%emt 00:01:57]} 56.
Nb3 {[%emt 00:00:08]} Be3 {[%emt 00:01:35]} 57. Na5 {[%emt 00:00:23]} Kf3
{[%emt 00:00:33]} 58. Kc2 {[%clk 00:01:43]} {[%emt 00:00:56]} Ke2 {[%clk
00:02:10]} {[%emt 00:00:15]} 59. Kb3 {[%clk 00:01:11]} {[%emt 00:01:04]} Kd3
{[%clk 00:02:28]} {[%emt 00:00:08]} 60. Nc6 {[%emt 00:00:25]} Bd2 {[%clk
00:02:12]} {[%emt 00:00:23]} 61. Na5 {[%emt 00:00:17]} Be1 {[%clk 00:01:59]}
{[%emt 00:00:36]} 62. Nc6 {[%emt 00:00:18]} Ke4 {[%clk 00:02:08]} {[%emt
00:00:14]} 63. Na5 {[%emt 00:01:30]} Ke5 {[%clk 00:01:54]} {[%emt 00:00:01]} 64.
Kc2 {[%clk 00:02:12]} {[%emt 00:00:24]} Kd6 {[%clk 00:02:09]} {[%emt 00:00:14]}
65. Kb3 {[%clk 00:02:00]} {[%emt 00:00:42]} Kc7 {[%clk 00:02:27]} {[%emt
00:00:10]} 66. Kc2 {[%clk 00:02:27]} {[%emt 00:00:05]} Kd6 {[%clk 00:02:36]}
{[%emt 00:00:20]} 67. Kb3 {[%clk 00:02:53]} {[%emt 00:00:05]} 1/2-1/2